Cogmind - Beta 13 @@@ ROGUE MODE // 2024.04.27 @ 00:41:21 Player: Thaleia Result: Destroyed by Y-45 Defender with Beam Rifle Performance ------------- Evolutions (0) 0 Regions Visited (2) 400 Robots Destroyed (6) 30 Value Destroyed (84) 84 Prototype IDs (0) 0 Alien Tech Used (0) 0 Bonus (0) 0 TOTAL SCORE: 514 Bonus ------- None Cogmind --------- Core Integrity 0/250 Matter 261/300 Energy 88/100 System Corruption 0% Temperature Cool (9) Movement Core (150) Ox2 Location -10/Mines Parts ------- > --- POWER (1) -------- (None) > --- PROPULSION (2) --- (None) > --- UTILITY (2) ------ Small Storage Unit Transport Network Coupler > --- WEAPON (2) ------- Light Cannon > --- INVENTORY (8) ---- Light Ion Engine Light Ion Engine Light Ion Engine Aluminum Leg Aluminum Leg Aluminum Leg Peak State ------------ > --- POWER ------------ Ion Engine > --- PROPULSION ------- Aluminum Leg Aluminum Leg > --- UTILITY ---------- Small Storage Unit Transport Network Coupler > --- WEAPON ----------- (None) > --- INVENTORY -------- Light Ion Engine Light Treads Light Treads [Rating: 5] Favorites ----------- Power Light Ion Engine Engine Light Ion Engine Propulsion Light Treads Treads Light Treads Leg Aluminum Leg Utility Small Storage Unit Storage Small Storage Unit Processor Transport Network Coupler Weapon Grenade Launcher Ballistic Cannon Light Cannon Launcher Grenade Launcher Build | -11 -10 -10 ------- Run | Yrd Mat Min Slots Evolved . | . . . Power . | . . . Propulsion . | . . . Utility . | . . . Weapon . | . . . Parts Attached 10 | 4 1 5 Power 2 | 1 . 1 Engine 2 | 1 . 1 Core . | . . . Reactor . | . . . Propulsion 4 | 2 . 2 Treads 2 | . . 2 Leg 2 | 2 . . Wheel . | . . . Hover . | . . . Flight . | . . . Utility 2 | 1 1 . Device . | . . . Storage 1 | 1 . . Processor 1 | . 1 . Hackware . | . . . Protection . | . . . Artifact . | . . . Weapon 2 | . . 2 Energy Gun . | . . . Energy Cannon . | . . . Ballistic Gun . | . . . Ballistic Cannon 1 | . . 1 Launcher 1 | . . 1 Special Weapon . | . . . Impact Weapon . | . . . Slashing Weapon . | . . . Piercing Weapon . | . . . Special Melee Weapon . | . . . Unidentified Prototypes . | . . . Parts Lost 5 | . . 5 Power 2 | . . 2 Propulsion 2 | . . 2 Utility . | . . . Weapon 1 | . . 1 Highest Loss Streak 4 | . . 4 To Critical Strikes . | . . . Average Slot Usage (%) 69 | . 66 69 Engine 13 | . 14 12 Treads 24 | . . 26 Leg 2 | . 28 . Storage 14 | . 14 14 Processor 13 | . 9 14 Naked Turns . | . . . Heaviest Build 10 | 10 10 10 Greatest Support 40 | 20 20 40 Greatest Overweight (x) 3 | 3 . 1 Average Overweight (x) . | . . . Largest Inventory Capacity 8 | 8 8 8 Average Capacity 7 | 7 8 8 Most Carried 6 | 3 3 6 Average Carried 3 | 1 3 4 Final Capacity 8 | 8 8 8 Final Carried 6 | 3 3 6 Class Distribution -------------------- 100% | Mutant Dominant Class ---------------- Mutant | -10/Materials Mutant | -10/Mines Resources | -11 -10 -10 ----------- Run | Yrd Mat Min Matter Collected 280 | 217 . 63 Remotely . | . . . Salvage Created 29 | . . 29 Parts 3 | . . 3 Haulers Intercepted . | . . . Recyclers Shooed . | . . . Parts Field Recycled . | . . . Retrieved Matter . | . . . Parts Self-Destructed . | . . . Prevented . | . . . Kills | -11 -10 -10 ------- Run | Yrd Mat Min Combat Hostiles Destroyed 6 | . . 6 Melee 6 | . . 6 Classes Destroyed 2 | . . 2 Swarmer 5 | . . 5 Grunt 1 | . . 1 Best Kill Streak 3 | . . 3 Combat Bots Only 3 | . . 3 Max Kills in Single Turn 1 | . . 1 Gunslinging . | . . . Exploded . | . . . Melee 1 | . . 1 Uniques/NPCs Destroyed . | . . . Combat | -11 -10 -10 -------- Run | Yrd Mat Min Hostile Shots Fired 93 | . . 93 Missed 22 | . . 22 Damage Taken 779 | . . 779 Core 257 | . . 257 Absorbed by Shields . | . . . Core Remaining (%) 100 | 100 . . Volleys Fired 3 | . . 3 Largest 1 | . . 1 Hottest 35 | . . 35 Shots Fired 3 | . . 3 Gun . | . . . Cannon 1 | . . 1 Launcher 2 | . . 2 Special . | . . . Kinetic 1 | . . 1 Thermal . | . . . Explosive 2 | . . 2 Electromagnetic . | . . . Robot Hit Streak 2 | . . 2 Robot Miss Streak 1 | . . 1 Penetration Max . | . . . Secondary Targets . | . . . Shots Hit Robots 2 | . . 2 Core Hits 6 | . . 6 Critical Kills . | . . . Critical Parts Destroyed . | . . . Critical Strikes 1 | . . 1 Blast 1 | . . 1 Melee Attacks . | . . . Impact . | . . . Slashing . | . . . Piercing . | . . . Sneak Attacks . | . . . Combat Hostiles . | . . . Follow-up Attacks . | . . . Damage Inflicted 132 | . . 132 Guns . | . . . Cannons 17 | . . 17 Explosions 67 | . . 67 Melee . | . . . Ramming 48 | . . 48 Kinetic 17 | . . 17 Thermal . | . . . Explosive 67 | . . 67 Electromagnetic . | . . . Impact . | . . . Slashing . | . . . Piercing . | . . . Highest Corruption . | . . . Average Corruption . | . . . Corruption Purged . | . . . Corruption Blocked . | . . . Overload Shots . | . . . Overflow Damage . | . . . Projectiles . | . . . Explosions . | . . . Melee . | . . . Knockbacks . | . . . Impact . | . . . Kinetic . | . . . Secondary . | . . . Self-Inflicted Damage 66 | . . 66 Shots 2 | . . 2 Rammed 21 | . . 21 Targets Rammed 27 | . . 27 Kicked . | . . . Crushed 6 | . . 6 Highest Temperature . | . . . Average Temperature . | . . . Received Heat Transfer 99 | . . 99 Siege Activations . | . . . Robots Corrupted . | . . . Combat Hostiles . | . . . Parts Fried . | . . . Impact Corruptions . | . . . Robots Melted . | . . . Combat Hostiles . | . . . Parts Melted . | . . . Heat Transferred . | . . . Parts Sabotaged . | . . . Parts Stolen . | . . . Parts Stripped . | . . . Power Chain Reactions . | . . . Alert | -11 -10 -10 ------- Run | Yrd Mat Min Peak Influence 135 | . 15 135 Initial 5 | . . 5 Average 40 | . 2 50 Maximum Alert Level . | . . . Low Security (%) 100 | 100 100 100 Level 1 . | . . . Level 2 . | . . . Level 3 . | . . . Level 4 . | . . . Level 5 . | . . . High Security . | . . . Max Security . | . . . Squads Dispatched . | . . . Investigation . | . . . Extermination . | . . . Reinforcement . | . . . Assault . | . . . Garrison . | . . . Intercept . | . . . Searches Triggered . | . . . Construction Impeded . | . . . Haulers Reinforced . | . . . Active Scanning Responses . | . . . Cargo Convoy Interrupts . | . . . Stealth | -11 -10 -10 --------- Run | Yrd Mat Min Distress Signals . | . . . Communications Jammed . | . . . Distress Signals . | . . . Times Spotted 11 | . 2 9 Peak Tracking Total 3 | . 2 3 Tactical Retreats . | . . . Traps | -11 -10 -10 ------- Run | Yrd Mat Min Traps Triggered . | . . . Indirectly . | . . . Trap Hack Attempts . | . . . Triggered . | . . . Disarmed . | . . . Reprogrammed . | . . . Reused . | . . . Traps Extracted . | . . . Installed . | . . . Triggered . | . . . Machines | -11 -10 -10 ---------- Run | Yrd Mat Min Machines Disabled 2 | . . 2 Max in Single Turn 1 | . . 1 Machines Repaired . | . . . Machines Dismantled . | . . . Machines Sabotaged . | . . . Overloaded Fab Kills . | . . . Hacking | -11 -10 -10 --------- Run | Yrd Mat Min Machines Accessed 3 | . 1 2 Terminals 3 | . 1 2 Fabricators . | . . . Repair Stations . | . . . Recycling Units . | . . . Scanalyzers . | . . . Garrison Access . | . . . Total Hacks 5 | . 1 4 Successful 3 | . . 3 Failed 2 | . 1 1 Catastrophic . | . . . Database Lockouts . | . . . Manual 2 | . . 2 Terminals 5 | . 1 4 Fabricators . | . . . Repair Stations . | . . . Recycling Units . | . . . Scanalyzers . | . . . Garrison Access . | . . . Terminal Hacks 2 | . . 2 Record 2 | . . 2 Fabricator Hacks . | . . . Repair Station Hacks . | . . . Recycling Unit Hacks . | . . . Scanalyzer . | . . . Garrison Access Hacks . | . . . Unauthorized Hacks 1 | . . 1 Terminals 1 | . . 1 Botnet 1 | . . 1 Fabricators . | . . . Repair Stations . | . . . Recycling Units . | . . . Scanalyzers . | . . . Garrison Access . | . . . Data Cores Recovered . | . . . Used . | . . . Hacking Detections 1 | . 1 . Full Trace Events . | . . . Feedback Events . | . . . Feedback Blocked . | . . . Robot Schematics Acquired . | . . . Robots Built . | . . . Authchips . | . . . Time . | . . . Total Robot Build Rating . | . . . Part Schematics Acquired . | . . . Parts Built . | . . . Authchips . | . . . Time . | . . . Total Part Build Rating . | . . . Parts Repaired . | . . . Time . | . . . Parts Recycled . | . . . Recycled Matter . | . . . Retrieved Matter . | . . . Retrieved Components . | . . . Parts Scanalyzed . | . . . Part Schematics Acquired . | . . . Parts Damaged . | . . . Bothacking | -11 -10 -10 ------------ Run | Yrd Mat Min Used RIF Installer . | . . . Robots Hacked . | . . . Non-combat . | . . . Combat . | . . . Robot Hacks Applied . | . . . Relay Couplers Released . | . . . Fabnet Peak Effective % . | . . . Robots Rewired . | . . . Allies Hacked . | . . . Hacks Repelled . | . . . Allies | -11 -10 -10 -------- Run | Yrd Mat Min Total Allies . | . . . Largest Group . | . . . Highest-Rated Group . | . . . Highest-Rated Ally . | . . . Total Orders . | . . . Ally Attacks . | . . . Total Damage . | . . . Kills . | . . . Allies Corrupted . | . . . Allies Melted . | . . . Intel | -11 -10 -10 ------- Run | Yrd Mat Min Robot Analysis Total . | . . . Derelict Logs Recovered 2 | . . 2 Drone Launches . | . . . Drone Recoveries . | . . . Exploration | -11 -10 -10 ------------- Run | Yrd Mat Min Turns Passed 852 | 110 63 679 Spaces Moved 536 | 96 52 388 Core 34 | 33 . 1 Treads 382 | . . 382 Legs 120 | 63 52 5 Wheels . | . . . Hover . | . . . Flight . | . . . Fastest Speed 50 | 50 120 100 Average Speed 145 | 105 120 159 Slowest Speed 200 | 200 120 160 Overloaded Moves . | . . . Propulsion Burnouts . | . . . Robots Hopped . | . . . Cave-ins Triggered . | . . . Exploration Rate (%) 24 | 4 15 54 Regions Visited 2 Branch Regions 1 Pre-discovered Areas 1 | . . 1 Known Exits Taken . | . . . Unknown Exits Taken 2 | 1 1 . Scrap Searched . | . . . Spaces Dug . | . . . Terrain Destroyed 21 | . . 21 Melee . | . . . Projectile . | . . . AOE 21 | . . 21 Terrain Rammed . | . . . Walls Destroyed . | . . . Machines Disabled . | . . . Actions | -11 -10 -10 --------- Run | Yrd Mat Min Total 583 | 103 52 428 Wait 3 | 1 . 2 Move 534 | 95 51 388 Hop . | . . . Pick Up 6 | 3 . 3 Fast Attach 8 | 4 1 3 Attach . | . . . Detach . | . . . Swap 2 | . . 2 Drop . | . . . Fire 3 | . . 3 Melee . | . . . Ram . | . . . Kick . | . . . Crush 27 | . . 27 Escape Stasis . | . . . Rewire . | . . . Trap . | . . . Miscellaneous . | . . . Route ------- -11/Scrapyard -10/Materials -10/Mines (discovered 1 exit: [*Mat]) History --------- Turn | Location | Event 72 | -11/Scrapyard | Discovered new exit (range 15) 111 | -11/Scrapyard | Entered Materials 161 | -10/Materials | Discovered new exit (range 12) 174 | -10/Materials | Entered Mines 300 | -10/Mines | Build established: Mutant 321 | -10/Mines | Learned Materials security intel 636 | -10/Mines | Learned location of Storage (-7) 709 | -10/Mines | Core integrity fell below 50% 785 | -10/Mines | Discovered new exit (range 12) 814 | -10/Mines | Learned Materials stockpile data 847 | -10/Mines | Core integrity fell below 20% 853 | -10/Mines | Destroyed by Y-45 Defender with Beam Rifle Last Messages --------------- 00638_ F3-QXM(g): "We scattered so the Unaware couldn't effectively use their advantage in numbers, and I suggest you do the same." 00638_ F3-QXM(g) slips back into the shadows. 00709_ Crushed G-34 Mercenary. 00709_ G-34 Mercenary destroyed. 00728_ Acquired Aluminum Leg. 00785_ EXIT=FOUND 00814_ Acquired derelict log, extracted data. Data stored: Materials stockpile data. 00838_ Lgt. Treads destroyed. 00841_ Lgt. Ion Engine destroyed. 00844_ Lgt. Treads destroyed. 00844_ Acquired Grenade Launcher. 00846_ Machine disabled. 00848_ The unstable cave ceiling collapses. 00848_ Machine disabled. 00850_ Grenade Launcher destroyed. 00851_ Acquired Lgt. Cannon. 00852_ Y-45 Defender Heat Sink blasted off. Map ----- +----------------------------------------------------+ | | | | | | | | | | | | | | | | | | | | | | | | | | | | | | | | | | | | | ????????????????????????????????? | | ????????????????????????????????? | | ????????????????????????????????? | | ???????????????????########?????? | | ???????????????????# #?????? | | ?????????####??????# #?????? | | ????????## ##????##% YY #?????? | | ???????## ##???# ![ @#?????? | | ??????## #???# [| [[ #????? | | ??????# #???# ##????? | | ??????# # ##???#### ###?????? | | ??????# # ####?????# #?????? | | ??????# # #????????# ##????? | | ??????# # #????????# #????? | | ???#### # #????????# #????? | | ???# #????????# #????? | | #### #####????????# #????? | | % #????????????# #????? | | ######????????????# #????? | | #?????????????????#### ###????? | | #????????????????????# #??????? | | #????????????????????# #??????? | | #????????????????????# #??????? | | ##?????????########???# #??????? | | ???????????# #???# #??????? | | ??????###### ### #???# #??????? | | #????## #?# #??## ##?????? | | ###### ### #?## #?????? | | ####### #?# #?????? | | #????# ### ##?????? | | #### ##???## ## ###??????? | | #??## #???## ##????????? | +----------------------------------------------------+ Best States ------------- Heat Dissipation 25 Energy Generation 10 Energy Capacity 250 Matter Stores 300 Matter Capacity 300 Sight Range 16 Terrain Scan Density 10 Evasion (%) 55 Recoil Reduction 2 Item Schematics ----------------- None Robot Schematics ------------------ None Fabricated ------------ Nothing Alien Tech Used ----------------- None Achievements -------------- None Challenges ------------ None Game ------ Seed CannonCompositeInsulator Manual? 0 Play Time 00:08:33 Cumulative 15.3 hours Start 2024.04.27 @ 00:34:52 End 2024.04.27 @ 00:41:21 Sessions 2 Manual Loads 0 Difficulty Rogue Special Mode None Game No. 36 Rogue 36 Adventurer 0 Explorer 0 Win Type - Total 0 Types 0/0/0/0/0/0/0/0/0 Lore% 9 Gallery% 20 Achievement% 19 Wizard Run 0 Options --------- Layout 2 ASCII 0 Keyboard 1 Movement Numpad Keybinds 0 Fullscreen 2 Font 32/SmallcapsGlow Map View 50x49 Zoom Use 0% Tactical HUD 1 Map Filters NONE Filters NONE Steam 1 RUN: 2be6f387-a21f-4a38-8e15-ca2bde08ccd2